bitfinex-derivatives/quotes_BTCF0:USTF0_20241217
["timestamp","ask_amount","ask_price","bid_price","bid_amount"]
[1734424094582,0.06,107100.0,107090.0,0.44089509]
[1734424094965,0.467483,107100.0,107090.0,0.08009509]
[1734424095280,0.06,107100.0,107090.0,0.08009509]
[1734424095569,0.06,107100.0,107090.0,0.44089509]
[1734424095763,0.106683,107100.0,107090.0,0.04679509]
[1734424095970,0.55111832,107100.0,107090.0,0.39163509]
[1734424096154,0.61371832,107100.0,107090.0,0.39163509]
[1734424096359,0.61371832,107100.0,107090.0,0.09305646]
[1734424096561,0.69735364,107100.0,107090.0,0.00010809]
[1734424098365,0.047191,107080.0,107070.0,0.391534]
[1734424098564,0.49162632,107080.0,107070.0,0.391534]
[1734424098766,0.52392632,107080.0,107070.0,0.391534]
[1734424099072,0.046698,107070.0,107060.0,0.046697]
[1734424099271,0.57476864,107070.0,107060.0,0.00011639]
[1734424099567,0.60806864,107070.0,107060.0,0.00011639]
[1734424100567,0.16363332,107070.0,107060.0,0.04681639]
[1734424100768,0.52443332,107070.0,107060.0,0.04681639]
[1734424101572,0.55763332,107070.0,107060.0,0.04681639]
[1734424103764,0.52433332,107070.0,107060.0,0.43681639]
[1734424104371,0.52433332,107070.0,107060.0,0.04681639]
[1734424109269,0.60796864,107070.0,107060.0,0.04681639]
[1734424109580,0.52433332,107070.0,107060.0,0.04681639]
[1734424110376,0.52433332,107070.0,107060.0,0.04731639]
[1734424110870,0.60796864,107070.0,107060.0,0.00061639]
[1734424112384,0.60796864,107070.0,107060.0,0.00011639]
[1734424113382,0.52433332,107070.0,107060.0,0.00061639]
[1734424114384,0.52433332,107070.0,107060.0,0.00011639]
[1734424114980,0.52433332,107070.0,107060.0,0.04681639]
[1734424114981,0.60796864,107070.0,107060.0,0.04681639]
[1734424115369,0.60796864,107070.0,107060.0,0.04731639]
[1734424115582,0.52433332,107070.0,107060.0,0.04731639]
[1734424117681,0.394,107070.0,107060.0,0.04731639]
[1734424118481,0.394,107070.0,107060.0,0.43731639]
[1734424118674,0.3608,107070.0,107060.0,0.43731639]
[1734424118872,0.3608,107070.0,107060.0,0.04731639]
[1734424119083,0.3608,107070.0,107060.0,0.07991639]
[1734424119280,0.4259,107080.0,107060.0,0.60025171]
[1734424119483,0.3936,107080.0,107070.0,0.046696]
[1734424122385,0.47723532,107080.0,107070.0,0.046696]
[1734424122986,0.3936,107080.0,107070.0,0.046696]
[1734424123582,0.3608,107080.0,107070.0,0.046696]
[1734424123777,0.11384495,107130.0,107090.0,0.201587]
[1734424123977,0.00221123,107130.0,107120.0,0.49110932]
[1734424124179,0.00221123,107130.0,107120.0,0.407474]
[1734424124385,0.00221123,107130.0,107120.0,0.49110932]
[1734424124993,0.00221123,107130.0,107120.0,0.49118216]
[1734424125383,0.00221123,107130.0,107120.0,0.88118216]
[1734424127892,0.00221123,107130.0,107120.0,0.49118216]
[1734424129586,0.00271123,107130.0,107120.0,0.49118216]
[1734424130681,0.00271123,107130.0,107120.0,0.53120149]
[1734424135691,0.03551123,107130.0,107120.0,0.53120149]
[1734424136394,0.03551123,107130.0,107120.0,0.54963901]
[1734424139191,0.00271123,107130.0,107120.0,0.54963901]
[1734424140102,0.00271123,107130.0,107120.0,0.46600369]
[1734424140602,0.00271123,107130.0,107120.0,0.54963901]
[1734424140987,0.00271123,107130.0,107120.0,0.76600369]
[1734424141392,0.00271123,107130.0,107120.0,0.46600369]
[1734424146405,0.00271123,107130.0,107120.0,0.31623229]
[1734424148518,0.08634655,107130.0,107120.0,0.14779477]
[1734424148707,0.44714655,107130.0,107120.0,0.08676617]
[1734424149000,0.44714655,107130.0,107120.0,0.44756617]
[1734424149001,0.00271123,107130.0,107120.0,0.44756617]
[1734424149208,0.00271123,107130.0,107120.0,0.53120149]
[1734424149394,0.00271123,107130.0,107120.0,0.44756617]
[1734424149595,0.00221123,107130.0,107120.0,0.44756617]
[1734424152195,0.00221123,107130.0,107120.0,0.53120149]
[1734424155211,0.00221123,107130.0,107120.0,0.92120149]
[1734424156203,0.00221123,107130.0,107120.0,1.26584149]
[1734424159502,0.00221123,107130.0,107120.0,1.27459586]
[1734424160615,0.00221123,107130.0,107120.0,0.88459586]
[1734424161004,0.00221123,107130.0,107120.0,1.27459586]
[1734424162000,0.00221123,107130.0,107120.0,1.26584149]
[1734424162614,0.00221123,107130.0,107120.0,1.62664149]
[1734424163103,0.00221123,107130.0,107120.0,1.63539586]
[1734424163605,0.00221123,107130.0,107120.0,1.62664149]
[1734424167813,0.00221123,107130.0,107120.0,1.64567399]
[1734424172414,0.00221123,107130.0,107120.0,1.72930931]
[1734424172613,0.5006703,107160.0,107150.0,0.046661]
[1734424172614,0.1397767,107160.0,107150.0,0.046661]
[1734424172817,0.1397767,107160.0,107150.0,0.49109632]
[1734424173214,0.17216044,107170.0,107160.0,0.046656]
[1734424173519,0.1864287,107170.0,107160.0,0.407456]
[1734424174506,0.046652,107170.0,107160.0,0.407456]
[1734424175813,0.141652,107170.0,107160.0,0.407456]
[1734424177639,0.22543267,107170.0,107160.0,0.407456]
[1734424178227,0.2397767,107200.0,107160.0,1.21932264]
[1734424178522,0.1,107200.0,107190.0,0.407443]
[1734424178716,0.1,107200.0,107190.0,0.667443]
[1734424179023,0.53027432,107200.0,107190.0,0.046643]
[1734424179217,0.40010838,107200.0,107190.0,0.04673628]
[1734424179413,0.10010838,107200.0,107190.0,0.40753628]
[1734424181331,0.05010838,107200.0,107190.0,0.4911716]
[1734424181518,0.02290838,107200.0,107190.0,0.5244716]
[1734424182627,0.02290838,107200.0,107190.0,0.63970692]
[1734424182818,0.78190401,107250.0,107230.0,0.046626]
[1734424183018,0.078022,107240.0,107230.0,0.3608]
[1734424183219,0.078022,107240.0,107230.0,0.407426]
[1734424183526,0.0314,107240.0,107230.0,0.407426]
[1734424183920,0.60233329,107260.0,107250.0,0.046617]
[1734424184119,0.44053099,107260.0,107250.0,0.04670118]
[1734424184320,0.07973099,107260.0,107250.0,0.04670118]
[1734424184521,0.16336631,107260.0,107250.0,8.418e-05]
[1734424184727,0.19556631,107260.0,107250.0,8.418e-05]
[1734424185231,0.00011699,107260.0,107250.0,0.91933182]
[1734424185428,0.00011699,107260.0,107250.0,1.1263965]
[1734424185631,0.00011699,107260.0,107250.0,1.21003182]
[1734424186628,0.00011699,107260.0,107250.0,1.1263165]
[1734424187027,0.00011699,107260.0,107250.0,1.4263165]
[1734424187226,0.507396,107300.0,107270.0,0.046606]
[1734424187423,0.0466,107290.0,107280.0,0.3608]
[1734424189036,0.046604,107280.0,107270.0,0.407406]
[1734424189334,0.046609,107270.0,107260.0,0.3608]
[1734424189633,0.44443532,107270.0,107250.0,0.75197918]
[1734424189829,0.44443532,107270.0,107250.0,0.40749918]
[1734424189830,0.13024832,107260.0,107250.0,0.40749918]
[1734424190033,0.49104832,107260.0,107250.0,8.418e-05]
[1734424190227,0.046622,107240.0,107220.0,0.40743]
[1734424190547,0.92130064,107260.0,107230.0,0.407424]
[1734424190548,0.046621,107250.0,107230.0,0.407424]
[1734424190721,0.08363532,107250.0,107230.0,0.407424]
[1734424190927,0.13025432,107250.0,107240.0,0.046622]
[1734424191435,0.13025432,107250.0,107240.0,0.04671109]
[1734424192632,0.49155032,107260.0,107250.0,0.046617]
[1734424193030,0.407915,107260.0,107250.0,0.046617]
[1734424193230,0.046618,107250.0,107240.0,0.04662]
[1734424193530,0.046622,107240.0,107230.0,0.3608]
[1734424193726,0.046622,107240.0,107230.0,0.00010138]
[1734424193953,0.407422,107240.0,107230.0,0.00010138]
[1734424194242,0.49105732,107240.0,107230.0,0.00010138]
[1734424194838,0.407422,107240.0,107230.0,0.00010138]
[1734424195040,0.49105732,107240.0,107230.0,0.00010138]
[1734424195335,0.79105732,107240.0,107230.0,0.00010138]
[1734424195537,0.79114162,107240.0,107230.0,0.00010138]
[1734424195740,0.55174162,107240.0,107230.0,0.00010138]
[1734424196241,8.43e-05,107240.0,107230.0,0.4911627]
[1734424197533,8.43e-05,107240.0,107230.0,0.40752738]
[1734424198142,8.43e-05,107240.0,107230.0,0.4911627]
[1734424201639,8.43e-05,107240.0,107230.0,0.40752738]
[1734424202344,0.0467063,107240.0,107230.0,0.40752738]
[1734424203942,0.0467063,107240.0,107230.0,0.00010138]
[1734424204251,0.52344162,107240.0,107230.0,0.00010138]
[1734424204439,0.82344162,107240.0,107220.0,0.3608]
[1734424204634,0.046626,107230.0,107220.0,0.40743]
[1734424204842,0.0790083,107240.0,107230.0,0.046626]
[1734424205148,0.19017528,107240.0,107230.0,0.407426]
[1734424205448,0.0790083,107240.0,107230.0,0.40750256]
[1734424206651,0.0790083,107240.0,107230.0,0.36087656]
[1734424206652,0.19017528,107240.0,107230.0,0.36087656]
[1734424206945,0.6346106,107240.0,107230.0,7.656e-05]
[1734424207446,0.96322032,107240.0,107230.0,7.656e-05]
[1734424207647,0.66322032,107240.0,107230.0,7.656e-05]
[1734424208443,0.30242032,107240.0,107230.0,7.656e-05]
[1734424208643,0.218785,107240.0,107230.0,7.656e-05]
[1734424209942,0.30242032,107240.0,107230.0,7.656e-05]
[1734424211749,0.33005881,107240.0,107230.0,7.656e-05]
[1734424211941,0.76927466,107240.0,107230.0,7.656e-05]
[1734424212244,0.63005881,107240.0,107230.0,7.656e-05]
[1734424212435,0.76927819,107240.0,107230.0,7.656e-05]
[1734424212639,0.63005881,107240.0,107230.0,7.656e-05]
[1734424213847,0.99085881,107240.0,107230.0,7.656e-05]
[1734424214046,0.046626,107230.0,107220.0,0.0005]
[1734424214439,0.1859192,107230.0,107220.0,0.0005]
[1734424214638,0.04663,107220.0,107210.0,0.407434]
[1734424215040,0.15804944,107220.0,107210.0,0.40750684]
[1734424215639,0.25071264,107230.0,107220.0,0.04663]
[1734424215845,0.11141944,107230.0,107220.0,0.49106532]
[1734424216048,0.11150374,107240.0,107230.0,0.046626]
[1734424216249,0.11150374,107240.0,107230.0,0.78216132]
[1734424216555,0.11150374,107240.0,107230.0,0.698526]
[1734424216556,0.15812574,107240.0,107230.0,0.698526]
[1734424217949,0.15812574,107240.0,107230.0,0.667426]
[1734424218550,0.15812574,107240.0,107230.0,0.75106132]
[1734424218941,0.15812574,107240.0,107230.0,0.667426]
[1734424220758,0.15812574,107240.0,107230.0,0.407426]
[1734424220959,0.24176106,107240.0,107230.0,0.3608]
[1734424221455,0.15812574,107240.0,107230.0,0.3608]
[1734424221953,0.1859995,107240.0,107230.0,0.3608]
[1734424222350,0.26963482,107240.0,107230.0,0.3608]
[1734424222749,0.1859995,107240.0,107230.0,0.3608]
[1734424223053,0.29756281,107240.0,107230.0,0.3608]
[1734424223353,0.1859995,107240.0,107230.0,0.3608]
[1734424223745,0.29756212,107240.0,107230.0,0.3608]
[1734424224252,0.1859995,107240.0,107230.0,0.3608]
[1734424224446,0.15827345,107240.0,107230.0,0.3608]
[1734424225052,0.24190877,107240.0,107230.0,0.3608]
[1734424225257,0.04663,107220.0,107210.0,0.40750584]
[1734424225658,0.04663,107220.0,107210.0,0.40800584]
[1734424226654,0.04663,107220.0,107210.0,0.40750584]
[1734424227556,0.04663,107220.0,107210.0,0.40800584]
[1734424228560,0.04663,107220.0,107210.0,0.43990584]
[1734424230153,0.04663,107220.0,107210.0,0.47040584]
[1734424231360,0.078226,107230.0,107210.0,0.47040584]
[1734424231361,8.43e-05,107240.0,107220.0,0.04663]
[1734424231558,0.2193857,107260.0,107250.0,0.046617]
[1734424231758,0.2193857,107260.0,107250.0,0.768217]
[1734424231962,0.047115,107260.0,107250.0,1.028217]
[1734424232562,0.046615,107260.0,107250.0,1.028217]
[1734424233463,6.986e-05,107280.0,107260.0,0.046613]
[1734424233660,6.986e-05,107280.0,107270.0,0.768209]
[1734424233661,0.04667586,107280.0,107270.0,0.768209]
[1734424234166,6.986e-05,107280.0,107270.0,0.85184432]
[1734424235067,6.986e-05,107280.0,107270.0,0.88234432]
[1734424235462,6.986e-05,107280.0,107270.0,1.22670432]
[1734424237456,6.986e-05,107280.0,107270.0,1.48670432]
[1734424238057,6.986e-05,107280.0,107270.0,1.51820432]
[1734424239563,6.986e-05,107280.0,107270.0,1.37246534]
[1734424239764,6.986e-05,107280.0,107270.0,1.41907434]
[1734424242468,6.986e-05,107280.0,107270.0,1.15907434]
[1734424242866,6.986e-05,107280.0,107270.0,1.41907434]
[1734424243569,6.986e-05,107280.0,107270.0,1.41916985]
[1734424245874,0.00056986,107280.0,107270.0,1.41916985]
[1734424246169,0.00056986,107280.0,107270.0,1.15916985]
[1734424246570,0.146597,107300.0,107270.0,1.15916985]
[1734424246571,0.1,107300.0,107290.0,0.0466]
[1734424246776,0.093179,107320.0,107300.0,0.046592]
[1734424246964,0.046589,107320.0,107310.0,0.3608]
[1734424247170,0.079389,107320.0,107310.0,0.3608]
[1734424247366,0.046589,107320.0,107310.0,0.407391]
[1734424247569,0.046589,107320.0,107310.0,0.40748826]
[1734424247770,0.0478928,107320.0,107310.0,0.36089726]
[1734424248285,0.0803928,107320.0,107310.0,0.36089726]
[1734424248466,0.0803928,107320.0,107310.0,9.726e-05]
[1734424248863,0.4411928,107320.0,107310.0,9.726e-05]
[1734424249069,0.0478928,107320.0,107310.0,9.726e-05]
[1734424250477,0.49232812,107320.0,107310.0,9.726e-05]
[1734424250778,0.49232812,107320.0,107300.0,0.407394]
[1734424250779,0.046595,107300.0,107280.0,0.751603]
[1734424250976,0.13023532,107290.0,107280.0,0.3608]
[1734424251181,0.046604,107280.0,107270.0,0.407406]
[1734424251378,0.111204,107280.0,107270.0,0.046606]
[1734424251573,0.19483932,107280.0,107270.0,0.046606]
[1734424251779,0.55694312,107280.0,107270.0,9.416e-05]
[1734424252283,0.4733078,107280.0,107270.0,9.416e-05]
[1734424252479,0.55694312,107280.0,107270.0,9.416e-05]
[1734424253171,0.5569859,107280.0,107270.0,9.416e-05]
[1734424253877,0.55702868,107280.0,107270.0,9.416e-05]
[1734424254282,0.55707146,107280.0,107270.0,9.416e-05]
[1734424254579,0.046613,107260.0,107250.0,0.3608]
[1734424255084,0.046617,107250.0,107240.0,0.40792]
[1734424255283,0.04804914,107250.0,107240.0,0.0005]
[1734424255676,0.52358446,107250.0,107240.0,8.383e-05]
[1734424256078,0.55408446,107250.0,107240.0,8.383e-05]
[1734424256671,0.63771978,107250.0,107240.0,0.00058383]
[1734424256991,0.046626,107230.0,107220.0,0.865]
[1734424257377,0.04805814,107230.0,107220.0,0.865]
[1734424257690,0.04805814,107230.0,107220.0,0.705]
[1734424257886,0.04805814,107230.0,107220.0,0.70510181]
[1734424258186,0.04805814,107230.0,107220.0,0.36090181]
[1734424258982,0.04805814,107230.0,107220.0,0.40753181]
[1734424261502,0.00143214,107230.0,107220.0,0.65116713]
[1734424261795,0.046615,107260.0,107250.0,0.046617]
[1734424261981,0.046615,107260.0,107250.0,0.49105232]
[1734424262180,0.046615,107260.0,107250.0,0.407417]
[1734424262380,0.07901,107270.0,107260.0,0.046613]
[1734424262586,0.04661,107270.0,107260.0,0.407413]
[1734424262980,0.04661,107270.0,107260.0,0.567413]
[1734424263593,0.04661,107270.0,107260.0,0.407413]
[1734424267486,0.13024532,107270.0,107260.0,0.407413]
[1734424268088,0.04661,107270.0,107260.0,0.407413]
[1734424268394,0.13024532,107270.0,107260.0,0.407413]
[1734424268594,0.13024532,107270.0,107260.0,0.3608]
[1734424269392,0.046613,107260.0,107250.0,0.407415]
[1734424269781,0.13024832,107260.0,107250.0,0.407415]
[1734424270181,0.046617,107250.0,107240.0,0.407421]
[1734424270397,0.16135232,107250.0,107240.0,0.407421]
[1734424270781,0.046622,107240.0,107230.0,0.70508]
[1734424270984,0.13025732,107240.0,107230.0,0.34428]
[1734424271287,0.13025732,107240.0,107220.0,0.36140181]
[1734424271288,0.046626,107230.0,107220.0,0.40803081]
[1734424273781,0.56877132,107250.0,107220.0,0.40803081]
[1734424273782,0.046622,107240.0,107230.0,0.046622]
[1734424273982,0.046622,107240.0,107230.0,0.407422]
[1734424279001,0.13025732,107240.0,107230.0,0.3608]
[1734424280397,0.046626,107230.0,107220.0,0.40752981]
[1734424280699,0.046626,107230.0,107220.0,0.40802981]
[1734424280995,0.16135232,107250.0,107220.0,0.49166513]
[1734424281200,0.046617,107250.0,107240.0,0.407422]
[1734424281704,0.13025232,107250.0,107240.0,0.3608]
[1734424282088,0.046622,107240.0,107230.0,0.3608]
[1734424282289,0.13025732,107240.0,107230.0,0.3608]
[1734424282497,0.13025732,107240.0,107230.0,0.407426]
[1734424282697,0.046622,107240.0,107230.0,0.407426]
[1734424283303,0.046622,107240.0,107230.0,0.3608]
[1734424283690,0.13025732,107240.0,107230.0,0.3608]
[1734424285092,0.13025732,107240.0,107230.0,0.407426]
[1734424285399,0.046622,107240.0,107230.0,0.407426]
[1734424286392,0.13025732,107240.0,107220.0,0.40802981]
[1734424286589,0.13026132,107230.0,107220.0,0.40802981]
[1734424286792,0.046626,107230.0,107220.0,0.40752981]
[1734424287596,0.13026132,107230.0,107220.0,0.40752981]
[1734424287805,0.13026132,107230.0,107220.0,0.36090181]
[1734424287997,0.16106132,107230.0,107220.0,0.36090181]
[1734424288299,0.16106132,107230.0,107220.0,0.00010181]
[1734424289895,0.16106132,107230.0,107220.0,0.04673181]
[1734424290904,0.16106132,107230.0,107220.0,0.00010181]
[1734424291399,0.19266132,107230.0,107220.0,0.00010181]
[1734424291607,0.22526132,107230.0,107220.0,0.00010181]
[1734424296005,0.58606132,107230.0,107220.0,0.00010181]
[1734424296302,0.58606132,107230.0,107210.0,0.3613]
[1734424296303,0.58606132,107230.0,107210.0,0.0005]
[1734424296505,0.13026532,107220.0,107210.0,0.0005]
[1734424296697,0.13026532,107220.0,107200.0,0.89308921]
[1734424296894,0.13027032,107210.0,107200.0,0.48393622]
[1734424297097,0.13027032,107210.0,107200.0,0.4608]
[1734424297306,0.13027032,107210.0,107200.0,0.4608989]
[1734424298807,0.13027032,107210.0,107200.0,0.4613989]
[1734424299198,0.49107032,107210.0,107200.0,0.1005989]
[1734424299708,0.57472641,107210.0,107200.0,0.1000989]
[1734424299893,0.046643,107190.0,107180.0,0.37928311]
[1734424300098,0.13027832,107190.0,107180.0,0.37928311]
[1734424300403,0.046643,107190.0,107180.0,0.42593111]
[1734424300994,0.046643,107190.0,107180.0,0.42602974]
[1734424301907,0.13027832,107190.0,107180.0,0.40754663]
[1734424302697,0.13027832,107190.0,107180.0,0.36089863]
[1734424303011,0.57471364,107190.0,107180.0,9.863e-05]
[1734424303311,0.49107832,107190.0,107180.0,9.863e-05]
[1734424305305,0.046643,107190.0,107180.0,0.36089863]
[1734424305504,0.046643,107190.0,107180.0,0.40754663]
[1734424306012,0.046643,107190.0,107180.0,0.56754663]
[1734424306416,0.13027832,107190.0,107180.0,0.40754663]
[1734424307000,0.13027832,107190.0,107180.0,0.36089863]
[1734424308013,0.49107832,107190.0,107180.0,9.863e-05]
[1734424308210,0.52407832,107190.0,107180.0,9.863e-05]
[1734424308415,0.55467832,107190.0,107180.0,9.863e-05]
[1734424309411,0.19387832,107190.0,107180.0,9.863e-05]
[1734424309811,0.19387832,107190.0,107180.0,0.00059863]
[1734424311017,0.046643,107190.0,107180.0,0.49168195]
[1734424311221,0.046643,107190.0,107180.0,0.40804663]
[1734424315717,0.046643,107190.0,107180.0,0.43153649]
[1734424317822,0.046643,107190.0,107180.0,0.43103649]
[1734424318716,0.13027832,107190.0,107180.0,0.43103649]
[1734424319225,0.046643,107190.0,107180.0,0.43103649]
[1734424323821,0.046643,107190.0,107180.0,0.25313706]
[1734424324026,0.046643,107190.0,107180.0,0.29978506]
[1734424324222,0.046643,107190.0,107180.0,0.31811396]
[1734424324830,0.046643,107190.0,107180.0,0.31821074]
[1734424327123,0.046643,107190.0,107180.0,0.7336017]
[1734424328225,0.03228632,107200.0,107190.0,0.046643]
[1734424328425,0.03228632,107200.0,107190.0,0.90646928]
[1734424328426,8.632e-05,107200.0,107190.0,0.90646928]
[1734424328631,8.632e-05,107200.0,107190.0,1.00606928]
[1734424329330,0.04672532,107200.0,107190.0,0.53578843]
[1734424329527,0.04672532,107200.0,107190.0,0.507043]
[1734424330924,0.13036064,107200.0,107190.0,0.407443]
[1734424331627,0.04672532,107200.0,107190.0,0.407443]
[1734424332732,0.04672532,107200.0,107190.0,0.82283396]
[1734424333135,0.13036064,107200.0,107190.0,0.07538843]
[1734424333335,0.49116064,107200.0,107190.0,0.02874543]
[1734424333640,0.13036064,107200.0,107190.0,0.02874543]
[1734424333828,0.13036064,107200.0,107190.0,0.07538843]
[1734424334035,0.49116064,107200.0,107190.0,0.07538843]
[1734424334935,0.04672532,107200.0,107190.0,0.046643]
[1734424335131,0.04672532,107200.0,107190.0,0.79408853]
[1734424335332,0.04672532,107200.0,107190.0,1.26471457]
[1734424336333,0.04672532,107200.0,107190.0,1.26605086]
[1734424336836,8.632e-05,107200.0,107190.0,1.26605086]
[1734424337032,8.632e-05,107200.0,107190.0,0.96170436]
[1734424337233,0.2319,107220.0,107210.0,0.046635]
[1734424337433,0.046628,107230.0,107220.0,0.04663]
[1734424337946,0.13026332,107230.0,107220.0,0.04663]
[1734424338833,0.13026332,107230.0,107220.0,0.07537543]
[1734424339327,0.57469864,107230.0,107220.0,0.02874543]
[1734424339734,0.04713,107220.0,107210.0,4.3e-07]
[1734424339930,0.04713,107220.0,107180.0,1.65789521]
[1734424339931,0.046643,107190.0,107180.0,1.65789521]
[1734424340134,0.49107832,107190.0,107180.0,0.38776979]
[1734424340336,0.52377832,107190.0,107180.0,9.678e-05]
[1734424340541,0.60741364,107190.0,107180.0,9.678e-05]
[1734424348147,0.60741364,107190.0,107160.0,0.44188061]
[1734424348148,1.13931364,107190.0,107160.0,0.44188061]
[1734424348445,0.49108732,107170.0,107160.0,0.44188061]
[1734424348848,0.49108732,107170.0,107150.0,0.06694778]
[1734424349152,0.13029132,107160.0,107150.0,0.06694778]
[1734424349347,0.13029132,107160.0,107150.0,0.06704982]
[1734424349548,0.13029132,107160.0,107150.0,0.42784982]
[1734424350649,0.13029132,107160.0,107150.0,0.47448593]
[1734424352047,0.13029132,107160.0,107150.0,0.44632884]
[1734424353646,0.13029132,107160.0,107150.0,0.47448593]
[1734424354047,0.13029132,107160.0,107150.0,0.44632884]
[1734424354646,0.13029132,107160.0,107150.0,0.42604206]
[1734424354844,0.13029132,107160.0,107150.0,0.37988106]
[1734424355953,0.13029132,107160.0,107150.0,0.01908106]
[1734424356158,0.13029132,107160.0,107150.0,0.42654206]
[1734424356954,0.13029132,107160.0,107150.0,0.45469915]
[1734424358051,0.13029132,107160.0,107150.0,0.06574206]
[1734424358250,0.13029132,107160.0,107150.0,0.42654206]
[1734424359642,0.046654,107170.0,107160.0,0.046653]
[1734424360357,0.13028932,107170.0,107160.0,0.046653]
[1734424361054,0.046654,107170.0,107160.0,0.046653]
[1734424361257,0.046654,107170.0,107160.0,0.407453]
[1734424364847,0.046654,107170.0,107160.0,0.42767008]
[1734424365560,0.13028932,107170.0,107160.0,0.42767008]
[1734424366263,0.13028932,107170.0,107160.0,0.06687008]
[1734424366452,0.13028932,107170.0,107160.0,0.046653]
[1734424366854,0.13028932,107170.0,107160.0,0.407453]
[1734424367053,0.13028932,107170.0,107160.0,0.046653]
[1734424368461,0.13028932,107170.0,107160.0,0.407453]
[1734424368665,0.16278332,107180.0,107170.0,0.046652]
[1734424368862,0.046648,107180.0,107170.0,0.407452]
[1734424369057,0.046648,107180.0,107170.0,0.473352]
[1734424370967,0.046648,107180.0,107170.0,0.504252]
[1734424372861,0.13028332,107180.0,107170.0,0.504252]
[1734424373762,0.08363532,107180.0,107170.0,0.504252]
[1734424375754,0.08363532,107180.0,107170.0,0.53240909]
[1734424377258,0.13028332,107180.0,107170.0,0.53240909]
[1734424377857,0.13028332,107180.0,107170.0,0.504252]
[1734424378764,0.046648,107180.0,107170.0,0.504252]
[1734424378963,0.44443532,107190.0,107170.0,0.34754722]
[1734424379261,0.49108132,107190.0,107180.0,0.046648]
[1734424379853,0.49158132,107190.0,107180.0,0.046648]
[1734424380861,0.49108132,107190.0,107180.0,0.046648]
[1734424381965,0.49158132,107190.0,107180.0,0.046648]
[1734424383968,0.49108132,107190.0,107180.0,0.046648]
[1734424384764,0.57471664,107190.0,107180.0,0.046648]
[1734424385179,0.046656,107160.0,107150.0,0.44198265]
[1734424385469,0.046669,107130.0,107120.0,0.53051569]
[1734424385673,0.0883211,107130.0,107120.0,0.55772323]
[1734424385866,0.046669,107130.0,107120.0,0.55772323]
[1734424386264,0.407469,107130.0,107120.0,0.05185317]
[1734424386472,0.407469,107130.0,107120.0,0.05195199]
[1734424386860,0.49110432,107130.0,107120.0,0.05195199]
[1734424387267,0.407469,107130.0,107120.0,0.05195199]
[1734424388077,0.49110432,107130.0,107120.0,9.882e-05]
[1734424388579,0.57473964,107130.0,107120.0,9.882e-05]
[1734424389980,0.49110432,107130.0,107120.0,9.882e-05]
[1734424390182,0.49110432,107130.0,107120.0,0.04677282]
[1734424391365,0.407469,107130.0,107120.0,0.04677282]
[1734424391562,0.407469,107130.0,107120.0,0.20677282]
[1734424391563,0.3608,107130.0,107120.0,0.20677282]
[1734424391776,0.55739732,107150.0,107130.0,0.046669]
[1734424391979,0.55739732,107150.0,107140.0,0.047165]
[1734424392981,0.55739732,107150.0,107140.0,0.046665]
[1734424393979,0.55739732,107150.0,107140.0,0.047165]
[1734424394571,0.44443532,107160.0,107140.0,0.407965]
[1734424394777,0.49109332,107160.0,107150.0,0.046661]
[1734424397999,0.57472864,107160.0,107150.0,0.046661]
[1734424399314,0.57472864,107160.0,107140.0,0.046663]
[1734424399315,0.046663,107150.0,107140.0,0.046663]
[1734424399614,0.13029832,107150.0,107140.0,0.046663]
[1734424400007,0.13029832,107150.0,107140.0,0.047163]
[1734424400008,0.49109832,107150.0,107140.0,0.047163]
[1734424400216,0.49109832,107150.0,107140.0,0.0005]
[1734424400910,0.046665,107140.0,107130.0,0.046666]
[1734424401204,0.046665,107140.0,107120.0,0.68954534]
[1734424401205,0.55800032,107140.0,107120.0,0.68954534]
[1734424401421,0.474365,107140.0,107130.0,0.046667]
[1734424401916,0.474365,107140.0,107130.0,0.047167]
[1734424402214,0.474365,107140.0,107130.0,0.04725637]
[1734424402814,0.55800032,107140.0,107130.0,0.04725637]
[1734424403011,0.55800032,107140.0,107130.0,0.04675637]
[1734424403907,0.55800032,107140.0,107130.0,0.04725637]
[1734424405018,0.55800032,107140.0,107130.0,0.04675637]
[1734424405903,0.55800032,107140.0,107130.0,0.04725637]
[1734424407007,0.55800032,107140.0,107130.0,0.04675637]
[1734424408011,0.55800032,107140.0,107130.0,0.04725637]
[1734424409012,0.55800032,107140.0,107130.0,0.04675637]
[1734424417498,0.474365,107140.0,107130.0,0.04675637]
[1734424417898,0.55800032,107140.0,107130.0,0.04675637]
[1734424426507,0.55800032,107140.0,107130.0,8.937e-05]
[1734424426700,0.58920032,107140.0,107130.0,8.937e-05]
[1734424429722,0.58920032,107140.0,107130.0,0.04675837]
[1734424430210,0.58920032,107140.0,107130.0,8.937e-05]
[1734424430411,0.67285641,107140.0,107130.0,8.937e-05]
[1734424430813,0.046674,107120.0,107110.0,0.080975]
[1734424431015,0.046674,107120.0,107110.0,0.081475]
[1734424431016,0.49110932,107120.0,107110.0,0.081475]
[1734424431809,0.49110932,107120.0,107110.0,0.08155401]
[1734424432023,0.49110932,107120.0,107110.0,0.08105401]
[1734424432609,0.49110932,107120.0,107110.0,0.09955072]
[1734424432922,0.49110932,107120.0,107110.0,0.10005072]
[1734424433920,0.49110932,107120.0,107110.0,0.09955072]
[1734424435030,0.49110932,107120.0,107110.0,0.10005072]
[1734424436022,0.49110932,107120.0,107110.0,0.09955072]
[1734424436929,0.49110932,107120.0,107110.0,0.10005072]
[1734424438230,0.49110932,107120.0,107110.0,0.03487901]
[1734424438721,0.49110932,107120.0,107110.0,0.00057901]
[1734424438922,0.49110932,107120.0,107110.0,7.901e-05]
[1734424439436,0.49110932,107120.0,107110.0,0.04675701]
[1734424439629,0.407474,107120.0,107110.0,0.04675701]
[1734424439827,0.49110932,107120.0,107110.0,0.04675701]
[1734424440222,0.49110932,107120.0,107110.0,7.901e-05]
[1734424442830,0.046678,107110.0,107100.0,0.1005]
[1734424443035,0.67154864,107110.0,107100.0,0.1]
[1734424443625,0.046687,107090.0,107080.0,0.06334179]
[1734424443823,0.49112232,107090.0,107080.0,0.0634524]
[1734424444329,0.49279801,107090.0,107080.0,0.0634524]
[1734424445533,0.49279801,107090.0,107080.0,0.0167644]
[1734424447536,0.40916269,107090.0,107080.0,0.0634554]
[1734424447840,0.04836269,107090.0,107080.0,0.0634554]
[1734424448437,0.04836269,107090.0,107080.0,0.4242554]
[1734424448645,0.04836269,107090.0,107080.0,0.0634554]
[1734424449033,0.00167569,107090.0,107080.0,0.4242554]
[1734424449438,0.00167569,107090.0,107080.0,0.2234554]
[1734424449941,0.00167569,107090.0,107080.0,0.5842554]
[1734424450340,0.0029566,107090.0,107080.0,0.4242554]
[1734424451440,0.0496436,107090.0,107080.0,0.4242554]
[1734424451743,0.0496436,107090.0,107080.0,0.0634554]
[1734424453333,0.49407892,107090.0,107080.0,0.0634554]
[1734424453949,0.49407892,107090.0,107080.0,0.0639554]
[1734424454945,0.13327892,107090.0,107080.0,0.0634554]